bitfinex/quotes_ETHUSD_20250210
["timestamp","ask_amount","ask_price","bid_price","bid_amount"]
[1739184382379,8.31992,2649.1,2648.8,2.18642331]
[1739184382705,3.77466,2649.3,2648.8,2.18642331]
[1739184382903,3.77466,2649.3,2648.9,0.14420904]
[1739184383093,3.77437,2649.5,2649.1,2.18642331]
[1739184383586,3.77458,2649.3,2649.2,0.14435169]
[1739184383799,5.10948,2649.3,2649.2,0.14435169]
[1739184383997,3.77512,2649.0,2648.8,2.18642331]
[1739184384176,3.77515,2648.9,2648.8,2.18642331]
[1739184385497,3.77502,2649.0,2648.8,2.18642331]
[1739184385708,3.77481,2649.2,2648.8,2.18642331]
[1739184385881,3.77494,2649.1,2648.8,2.18642331]
[1739184386086,3.77481,2649.2,2648.8,2.18642331]
[1739184386269,7.54966,2649.2,2648.8,2.18642331]
[1739184386467,3.77493,2649.1,2648.8,2.18642331]
[1739184386872,4.5596,2649.3,2648.8,2.18642331]
[1739184387068,3.7747,2649.3,2648.8,2.18642331]
[1739184387302,0.97221314,2649.9,2649.3,3.7745]
[1739184387303,0.7849,2649.9,2649.3,3.7745]
[1739184387505,3.77401,2649.7,2649.6,2.18642331]
[1739184387973,3.77416,2649.6,2649.3,2.18642331]
[1739184388175,3.77437,2649.5,2649.3,2.18642331]
[1739184388375,0.7849,2649.4,2649.3,2.18642331]
[1739184388576,4.55933,2649.4,2649.3,2.18642331]
[1739184388776,0.7849,2649.6,2649.3,2.18642331]
[1739184388979,3.7743,2649.5,2649.3,2.18642331]
[1739184389174,3.77486,2649.1,2649.0,0.38312]
[1739184389374,3.77486,2649.1,2648.8,2.18642331]
[1739184389375,3.77504,2649.0,2648.8,2.18642331]
[1739184389613,3.77515,2648.9,2648.8,2.18642331]
[1739184389976,3.775,2649.0,2648.8,2.18642331]
[1739184390224,3.77515,2648.9,2648.8,2.18642331]
[1739184390708,3.775,2649.0,2648.8,2.18642331]
[1739184391310,3.77479,2649.2,2648.8,2.18642331]
[1739184391510,7.54963,2649.2,2648.8,2.18642331]
[1739184391707,3.77479,2649.2,2648.8,2.18642331]
[1739184392390,7.54965,2649.2,2648.8,2.18642331]
[1739184392586,3.77479,2649.2,2648.8,2.18642331]
[1739184393683,3.77503,2649.0,2648.8,2.18642331]
[1739184393879,0.7849,2649.3,2648.5,2.18642331]
[1739184394084,3.77544,2648.7,2648.5,2.18642331]
[1739184394417,0.7849,2648.8,2648.5,2.18642331]
[1739184395407,3.7751,2649.0,2648.5,2.18642331]
[1739184395708,4.55976,2649.1,2648.6,3.7755]
[1739184395918,3.77523,2648.9,2648.5,2.18642331]
[1739184396276,3.77508,2649.0,2648.5,2.18642331]
[1739184396481,4.55981,2649.1,2648.6,3.77557]
[1739184397611,4.55981,2649.1,2648.4,6.93849591]
[1739184397612,0.7849,2649.3,2648.9,3.77513]
[1739184397796,4.56551,2649.5,2649.1,2.18642331]
[1739184397985,3.77431,2649.5,2649.1,2.18642331]
[1739184398190,3.77431,2649.5,2649.2,0.13251324]
[1739184400220,3.77408,2649.7,2649.2,0.13251324]
[1739184400513,5.31140043,2649.8,2649.3,3.77457]
[1739184400695,9.08537043,2649.8,2649.3,3.77457]
[1739184400897,9.08537043,2649.8,2649.4,0.13248602]
[1739184401096,3.77402,2649.7,2649.4,0.13248602]
[1739184401296,3.77416,2649.6,2649.4,0.13248602]
[1739184401497,3.77429,2649.5,2649.1,2.18642331]
[1739184401699,3.77416,2649.6,2649.5,0.13228888]
[1739184402023,3.77416,2649.6,2649.1,5.96117331]
[1739184402195,5.31140043,2649.8,2649.2,0.13232971]
[1739184402400,3.77404,2649.7,2649.2,3.90703971]
[1739184402606,5.31140043,2649.8,2649.2,0.13232971]
[1739184402832,3.77422,2649.6,2649.2,0.13232971]
[1739184403116,7.54847,2649.6,2649.2,0.13232971]
[1739184403417,5.31135043,2649.8,2649.2,0.13232971]
[1739184403786,3.77423,2649.6,2649.2,0.13232971]
[1739184404387,3.77443,2649.5,2649.2,0.13232971]
[1739184404618,3.77423,2649.6,2649.2,0.13232971]
[1739184405621,5.31140043,2649.8,2649.2,0.13232971]
[1739184405825,3.77442,2649.5,2649.2,0.13232971]
[1739184406122,4.56578,2649.3,2649.2,0.13232971]
[1739184406442,0.7912,2649.3,2648.8,2.18642331]
[1739184406659,3.77508,2649.0,2648.8,2.18642331]
[1739184406862,0.7912,2649.2,2648.4,3.16273591]
[1739184407016,3.77585,2648.5,2648.0,2.18642331]
[1739184407208,3.77565,2648.6,2648.0,2.18642331]
[1739184407539,3.77591,2648.4,2648.0,2.18642331]
[1739184407749,4.56711,2648.4,2648.0,2.18642331]
[1739184408766,0.7912,2648.4,2648.0,2.18642331]
[1739184409060,3.77573,2648.5,2648.0,5.96284331]
[1739184409963,0.7912,2648.6,2648.0,5.96284331]
[1739184410116,0.7912,2648.6,2648.2,3.77614]
[1739184410427,4.56685,2648.6,2648.0,5.96276331]
[1739184410615,0.7912,2648.6,2648.0,2.18642331]
[1739184410968,3.77616,2648.2,2647.7,2.18642331]
[1739184411260,3.77643,2648.0,2647.4,5.96357331]
[1739184411429,8.34417,2648.0,2647.4,5.96357331]
[1739184411738,4.56763,2648.0,2647.4,5.96357331]
[1739184411939,4.56763,2648.0,2647.4,2.18642331]
[1739184412140,3.77682,2647.8,2647.4,2.18642331]
[1739184412330,4.56769,2648.0,2647.4,5.96367331]
[1739184412533,0.7912,2648.0,2647.5,3.77706]
[1739184413445,4.56765,2648.0,2647.4,5.96362331]
[1739184414442,0.7912,2648.0,2647.6,3.77696]
[1739184414621,0.74260607,2648.1,2647.7,0.11492146]
[1739184415439,0.7912,2648.3,2647.7,6.07818477]
[1739184415644,4.56724,2648.3,2647.7,6.07818477]
[1739184416115,3.77615,2648.2,2647.7,2.30134477]
[1739184416735,0.7912,2648.3,2647.8,3.77663]
[1739184416940,4.56724,2648.3,2647.7,6.07816477]
[1739184417246,4.56724,2648.3,2647.8,0.11490783]
[1739184417450,4.56724,2648.3,2647.7,5.96324331]
[1739184417750,4.56724,2648.3,2647.8,0.11490783]
[1739184418148,4.56724,2648.3,2647.7,2.18642331]
[1739184418445,3.77636,2648.1,2647.9,0.11489421]
[1739184418646,3.77636,2648.1,2647.8,0.11490783]
[1739184418812,4.56724,2648.3,2647.9,0.11489421]
[1739184419018,8.34335,2648.3,2647.7,5.96327331]
[1739184419237,4.56724,2648.3,2647.7,5.96327331]
[1739184419468,4.56724,2648.3,2647.8,0.11490783]
[1739184419623,8.34332,2648.3,2647.7,5.96327331]
[1739184419820,4.56724,2648.3,2647.8,0.11490783]
[1739184420026,3.77624,2648.2,2647.7,5.96327331]
[1739184420374,0.7912,2648.3,2647.8,3.89150783]
[1739184420556,4.32581,2648.5,2647.9,3.77654]
[1739184420732,4.32581,2648.5,2647.8,0.11490783]
[1739184420935,3.77601,2648.3,2648.0,0.11488058]
[1739184421218,3.77601,2648.3,2648.1,0.11486696]
[1739184421431,3.77601,2648.3,2647.8,3.7767]
[1739184421854,5.06676362,2648.5,2647.9,0.11489421]
[1739184422043,3.77588,2648.4,2647.9,3.77655]
[1739184422240,3.77667,2647.9,2647.7,2.18642331]
[1739184422438,3.77611,2648.3,2647.7,5.96327331]
[1739184422643,3.77586,2648.4,2647.7,5.96327331]
[1739184422849,3.77586,2648.4,2647.8,3.77663]
[1739184423554,5.06677362,2648.5,2647.7,5.96319331]
[1739184423760,3.77622,2648.2,2647.7,5.96326331]
[1739184423960,7.55218,2648.3,2647.7,5.96326331]
[1739184424327,3.77609,2648.3,2647.7,5.96326331]
[1739184424745,7.55218,2648.3,2647.7,5.96326331]
[1739184424950,3.77609,2648.3,2647.8,3.77668]
[1739184425731,4.32578,2648.5,2647.9,3.77655]
[1739184425936,0.74450826,2648.5,2648.0,2.18642331]
[1739184426257,4.52023826,2648.5,2648.1,3.77624]
[1739184426867,4.52023826,2648.5,2648.0,2.18642331]
[1739184427063,3.77573,2648.5,2648.0,2.18642331]
[1739184427364,4.56644,2648.9,2648.4,3.77585]
[1739184427527,0.2,2649.7,2648.5,3.77571]
[1739184427528,3.77501,2649.0,2648.5,3.77571]
[1739184427956,3.77501,2649.0,2648.6,0.11476608]
[1739184428531,4.56614,2649.1,2648.6,3.89032608]
[1739184428735,3.77494,2649.1,2648.6,6.07674939]
[1739184429543,4.51408848,2649.1,2648.6,2.30118939]
[1739184429743,4.51408848,2649.1,2648.6,0.11476608]
[1739184430165,4.51408848,2649.1,2648.4,3.77575]
[1739184430343,3.77517,2648.9,2648.7,0.1153687]
[1739184430543,8.28907848,2649.1,2648.5,3.77571]
[1739184430747,4.55794,2649.3,2648.8,3.89063508]
[1739184430952,3.77464,2649.3,2648.8,3.77528]
[1739184431152,3.77464,2649.3,2648.9,2.30176478]
[1739184432326,0.76326467,2649.4,2648.9,6.07679478]
[1739184433255,3.77445,2649.4,2648.9,6.07679478]
[1739184434551,3.77445,2649.4,2648.9,2.30176478]
[1739184435164,3.7746,2649.3,2648.9,0.11534147]
[1739184435375,3.7746,2649.3,2648.9,2.30176478]
[1739184435663,3.77446,2649.4,2649.0,0.11414756]
[1739184435975,0.76420551,2649.5,2649.0,0.11414756]
[1739184436135,0.76420551,2649.5,2649.1,3.77485]
[1739184436462,0.76420551,2649.5,2649.2,0.11412033]
[1739184436463,3.77451,2649.4,2649.2,0.11412033]
[1739184436666,3.77451,2649.4,2648.9,5.96156331]
[1739184436867,3.77451,2649.4,2649.0,0.11414756]
[1739184437371,3.77458,2649.3,2649.0,0.11414756]
[1739184437941,3.77474,2649.2,2649.0,0.11414756]
[1739184438139,3.77486,2649.1,2649.0,0.11414756]
[1739184438347,3.77524,2648.9,2648.6,2.18642331]
[1739184438547,3.77493,2649.1,2649.0,0.114141]
[1739184438774,3.77493,2649.1,2648.6,2.18642331]
[1739184438952,3.77493,2649.1,2649.0,0.114141]
[1739184439157,3.77493,2649.1,2648.6,2.18642331]
[1739184439355,3.77493,2649.1,2649.0,0.114141]
[1739184439559,3.77452,2649.4,2648.9,2.18642331]
[1739184439753,0.76420551,2649.5,2649.0,3.889071]
[1739184439754,4.53854551,2649.5,2649.0,3.889071]
[1739184439982,3.77422,2649.6,2649.2,2.18642331]
[1739184440473,3.77422,2649.6,2649.3,0.11417883]
[1739184440676,3.77422,2649.6,2649.2,2.18642331]
[1739184440872,3.77422,2649.6,2649.3,0.11417883]
[1739184441080,6.1478387,2650.7,2649.5,5.96070331]
[1739184441081,0.76496493,2649.9,2649.5,5.96070331]
[1739184441377,0.7833,2650.5,2649.8,2.18642331]
[1739184441568,0.75112933,2650.5,2650.2,2.18642331]
[1739184441761,4.52406933,2650.5,2650.2,2.18642331]
[1739184441966,3.77301,2650.4,2650.3,0.1137675]
[1739184442377,3.77301,2650.4,2649.6,3.77408]
[1739184442378,0.7833,2651.1,2650.2,2.18642331]
[1739184442546,5.32,2652.2,2651.0,5.95848331]
[1739184442547,0.75067571,2651.2,2651.0,5.95848331]
[1739184442742,3.77172,2651.4,2651.0,2.18642331]
[1739184442941,3.77175,2651.3,2651.1,0.11333114]
[1739184443162,3.77154,2651.5,2651.1,0.11333114]
[1739184443381,0.7833,2651.6,2651.1,0.11333114]
[1739184443382,3.77136,2651.6,2651.1,0.11333114]
[1739184443683,3.77159,2651.4,2651.1,0.11333114]
[1739184444393,3.77148,2651.5,2651.1,0.11333114]
[1739184444860,3.7716,2651.4,2651.1,0.11333114]
[1739184445848,7.54333,2651.4,2651.1,0.11333114]
[1739184446051,3.77187,2651.2,2651.1,0.11333114]
[1739184446271,5.10517,2651.2,2651.1,0.11333114]
[1739184446470,3.77235,2650.9,2650.4,2.18642331]
[1739184446655,3.77235,2650.9,2650.7,2.18642331]
[1739184446992,3.77235,2650.9,2650.8,0.10693478]
[1739184447357,3.77244,2650.8,2650.7,2.18642331]
[1739184447691,3.77235,2650.9,2650.7,2.18642331]
[1739184448270,7.54477,2650.9,2650.7,2.18642331]
[1739184448453,3.77235,2650.9,2650.7,2.18642331]
[1739184449184,3.77244,2650.8,2650.7,2.18642331]
[1739184449890,3.77262,2650.7,2650.4,2.18642331]
[1739184450057,3.77274,2650.6,2650.4,2.18642331]
[1739184450404,3.77237,2650.9,2650.4,2.18642331]
[1739184450551,0.76605195,2651.3,2650.7,2.18642331]
[1739184450991,3.77213,2651.1,2650.7,2.18642331]
[1739184452389,3.77181,2651.3,2651.0,2.18642331]
[1739184452587,3.77145,2651.5,2650.7,0.38312]
[1739184452788,3.77226,2651.0,2650.7,0.38312]
[1739184453093,3.77193,2651.2,2650.7,0.38312]
[1739184453485,3.77216,2651.0,2650.7,0.38312]
[1739184454078,3.77191,2651.2,2650.7,0.38312]
[1739184455212,3.77218,2651.0,2650.7,0.38312]
[1739184455465,3.77191,2651.2,2650.7,0.38312]
[1739184455617,3.77217,2651.0,2650.7,0.38312]
[1739184455914,3.77191,2651.2,2650.7,0.38312]
[1739184456113,3.77191,2651.2,2650.7,4.15569]
[1739184456484,3.77191,2651.2,2650.7,4.15566]
[1739184456689,3.77173,2651.3,2650.9,2.18642331]
[1739184457273,3.77167,2651.4,2650.9,2.18642331]
[1739184457474,7.54278,2651.6,2651.0,3.77212]
[1739184457675,3.77107,2651.8,2651.2,5.95825331]
[1739184457911,3.77152,2651.5,2651.3,0.09213956]
[1739184458115,3.77152,2651.5,2651.2,2.18642331]
[1739184458281,3.77173,2651.3,2651.2,2.18642331]
[1739184459089,3.77152,2651.5,2651.2,2.18642331]
[1739184459294,3.77164,2651.4,2651.2,2.18642331]
[1739184460125,3.77173,2651.3,2651.2,2.18642331]
[1739184460425,3.77173,2651.3,2650.9,11.04642331]
[1739184460621,3.77216,2651.0,2650.9,11.04642331]
[1739184461420,3.77202,2651.1,2650.6,2.18642331]
[1739184461630,3.77109,2651.8,2651.2,3.77179]
[1739184461917,0.7501303,2652.0,2651.4,2.18642331]
[1739184462110,3.77087,2652.0,2651.4,2.18642331]
[1739184462307,3.77109,2651.8,2651.4,2.18642331]
[1739184462507,3.77145,2651.5,2651.1,2.18642331]
[1739184463190,0.55,2651.9,2651.1,2.18642331]
[1739184463191,3.77162,2651.4,2651.1,2.18642331]
[1739184463399,3.77187,2651.2,2651.1,2.18642331]
[1739184463603,3.77187,2651.2,2650.8,2.18642331]
[1739184463604,3.77216,2651.0,2650.8,2.18642331]
[1739184464210,3.77175,2651.3,2650.8,5.95879331]
[1739184464788,4.55398,2651.7,2650.8,2.18642331]
[1739184465015,3.7723,2650.9,2650.8,2.18642331]
[1739184465225,3.77209,2651.1,2650.8,2.18642331]
[1739184465913,3.77178,2651.3,2650.8,2.18642331]
[1739184466099,7.54362,2651.3,2650.8,2.18642331]
[1739184466291,3.77194,2651.2,2650.8,2.18642331]
[1739184467566,3.77223,2651.0,2650.8,2.18642331]
[1739184467857,3.77216,2651.0,2650.5,2.56954331]
[1739184468064,3.77267,2650.7,2650.5,2.18642331]
[1739184468212,3.77289,2650.5,2650.2,2.18642331]
[1739184468409,3.77267,2650.7,2650.2,2.18642331]
[1739184468633,3.77203,2651.1,2650.5,2.18642331]
[1739184468833,3.77203,2651.1,2650.5,5.95926331]
[1739184469009,7.54417,2651.1,2650.5,5.95926331]
[1739184469213,3.77217,2651.0,2650.5,2.18642331]
[1739184469611,3.77238,2650.9,2650.5,2.18642331]
[1739184469808,0.55,2651.1,2650.5,2.18642331]
[1739184470009,3.77266,2650.7,2650.2,5.95963331]
[1739184470226,3.77266,2650.7,2650.2,2.18642331]
[1739184470430,3.77266,2650.7,2650.2,5.95969331]
[1739184472617,3.77246,2650.8,2650.2,5.95969331]
[1739184472818,3.77289,2650.5,2650.2,2.18642331]
[1739184473033,3.77289,2650.5,2650.3,0.09172828]
[1739184473422,3.77289,2650.5,2650.2,2.18642331]
[1739184473625,3.77261,2650.7,2650.4,0.09171468]
[1739184473825,3.77275,2650.6,2650.3,0.09172828]
[1739184474013,3.77275,2650.6,2650.5,0.09170108]
[1739184474216,3.77275,2650.6,2650.2,2.18642331]
[1739184474412,3.77261,2650.7,2650.5,0.09170108]
[1739184474715,3.77226,2651.0,2650.6,0.09168749]
[1739184474948,3.77202,2651.1,2650.6,0.09168749]
[1739184475157,3.77202,2651.1,2650.8,2.18642331]
[1739184475629,3.77202,2651.1,2650.9,0.0916467]
[1739184476034,7.54412,2651.1,2650.9,0.0916467]
[1739184476369,3.77202,2651.1,2650.9,0.0916467]
[1739184476559,3.77273,2650.6,2650.5,2.18642331]
[1739184477027,3.77273,2650.6,2650.0,4.15662]
[1739184477028,3.77301,2650.4,2650.2,2.18642331]
[1739184478464,7.54567,2650.6,2650.2,2.18642331]
[1739184478751,3.77288,2650.5,2650.2,2.18642331]
[1739184478920,0.55,2650.8,2650.2,2.18642331]
[1739184479120,3.77313,2650.4,2650.2,2.18642331]
[1739184479323,3.7728,2650.6,2650.2,2.18642331]
[1739184479520,7.54563,2650.6,2650.2,2.18642331]
[1739184479731,3.7728,2650.6,2650.2,2.18642331]
[1739184480274,0.74915281,2650.8,2650.2,2.18642331]
[1739184480275,3.77301,2650.4,2650.2,2.18642331]
[1739184480750,3.77279,2650.6,2650.2,2.18642331]
[1739184481655,3.77258,2650.7,2650.2,2.18642331]
[1739184481855,3.7729,2650.5,2650.2,2.18642331]
[1739184482857,3.77276,2650.6,2650.2,2.18642331]
[1739184483554,3.77258,2650.7,2650.2,5.95964331]
[1739184484954,6.7719,2651.2,2650.6,2.18642331]
[1739184484955,3.77196,2651.2,2650.6,2.18642331]
[1739184485133,3.77229,2651.0,2650.6,2.18642331]
[1739184488074,3.77229,2651.0,2650.7,0.09276202]
[1739184488752,7.54454,2651.0,2650.7,0.09276202]
[1739184488931,3.77225,2651.0,2650.7,0.09276202]
[1739184489356,3.77154,2651.5,2650.9,2.18642331]
[1739184489580,3.77124,2651.7,2651.2,2.18642331]
[1739184489738,4.60397,2651.9,2651.2,2.18642331]
[1739184489939,3.77078,2652.0,2651.5,2.18642331]
[1739184490161,3.77078,2652.0,2651.9,2.18642331]
[1739184490678,3.7704,2652.3,2651.9,2.27879418]
[1739184490837,3.77062,2652.1,2651.9,2.27879418]
[1739184491344,7.54132,2652.1,2651.9,2.27879418]
[1739184491557,3.77039,2652.3,2651.9,2.27879418]
[1739184491859,3.77063,2652.1,2651.9,2.27879418]
[1739184493377,3.77038,2652.3,2651.9,2.27879418]
[1739184494274,7.54081,2652.3,2651.9,2.27879418]
[1739184495074,0.75494936,2652.4,2651.9,6.04965418]
[1739184495276,3.77025,2652.4,2651.9,6.04965418]
[1739184495453,0.7825,2652.9,2651.9,2.27879418]
[1739184495777,3.76951,2652.9,2652.5,2.18642331]
[1739184496163,3.76975,2652.7,2652.6,0.09114242]
[1739184496942,0.61910218,2654.4,2652.6,0.09114242]
[1739184497148,3.76956,2652.9,2652.6,0.09114242]
[1739184499777,3.7692,2653.1,2652.6,0.09114242]
[1739184500157,3.76942,2653.0,2652.6,0.09114242]
[1739184500360,3.7692,2653.1,2652.6,0.09114242]
[1739184500549,3.7695,2652.9,2652.6,0.09114242]
[1739184500748,3.7692,2653.1,2652.8,2.18642331]
[1739184501078,3.76894,2653.3,2652.8,2.18642331]
[1739184501279,3.76917,2653.1,2652.9,0.08953911]
[1739184502049,3.76894,2653.3,2652.9,0.08953911]
[1739184502254,3.76907,2653.2,2652.9,0.08953911]
[1739184502644,3.76924,2653.1,2652.9,0.08953911]
[1739184503847,3.76896,2653.3,2652.9,0.08953911]
[1739184505182,3.7691,2653.2,2652.9,0.08953911]
[1739184505881,3.76924,2653.1,2652.9,0.08953911]
[1739184506179,0.005,2653.4,2652.9,0.08953911]
[1739184506387,3.77386,2653.4,2652.9,0.08953911]
[1739184507177,3.76892,2653.3,2652.9,0.08953911]
[1739184507394,7.54274,2653.4,2652.9,0.08953911]
[1739184508086,3.77386,2653.4,2652.9,0.08953911]
[1739184508453,3.76889,2653.3,2652.9,0.08953911]
[1739184509084,3.76923,2653.1,2652.9,0.08953911]
[1739184509383,3.76931,2653.0,2652.9,0.08953911]
[1739184510514,7.53825,2653.2,2652.9,0.08953911]
[1739184510787,3.76918,2653.1,2652.9,0.08953911]
[1739184510954,3.76909,2653.2,2652.9,0.08953911]
[1739184511458,7.53822,2653.2,2652.9,0.08953911]
[1739184511863,3.76909,2653.2,2652.9,0.08953911]
[1739184512065,3.76931,2653.0,2652.9,0.08953911]
[1739184512491,3.76909,2653.2,2652.9,0.08953911]
[1739184512683,3.7692,2653.1,2652.9,0.08953911]
[1739184513456,3.76926,2653.1,2652.9,0.08953911]
[1739184514086,3.76931,2653.0,2652.9,0.08953911]
[1739184514863,3.7696,2652.8,2652.7,0.38312]
[1739184515693,7.53903,2652.9,2652.7,0.38312]
[1739184516187,7.53903,2652.9,2652.5,2.18642331]
[1739184516188,3.76946,2652.9,2652.5,2.18642331]
[1739184516418,3.7696,2652.8,2652.5,2.18642331]
[1739184518129,3.7696,2652.8,2652.6,0.08919597]
[1739184518490,3.76974,2652.7,2652.6,0.08919597]
[1739184519543,7.53905,2652.9,2652.6,0.08919597]
[1739184519841,3.76962,2652.8,2652.6,0.08919597]
[1739184521013,3.76974,2652.7,2652.6,0.08919597]
[1739184521943,3.76962,2652.8,2652.6,0.08919597]
[1739184522144,7.53932,2652.8,2652.6,0.08919597]
[1739184522441,3.76962,2652.8,2652.6,0.08919597]
[1739184522744,3.76974,2652.7,2652.6,0.08919597]
[1739184523244,3.76962,2652.8,2652.6,0.08919597]
[1739184523424,7.53932,2652.8,2652.6,0.08919597]
[1739184523624,3.76962,2652.8,2652.6,0.08919597]
[1739184523824,7.53931,2652.8,2652.6,0.08919597]
[1739184524022,3.76974,2652.7,2652.6,0.08919597]
[1739184524228,3.77033,2652.3,2651.9,11.04642331]
[1739184524419,3.77038,2652.3,2651.9,2.18642331]
[1739184524749,3.77045,2652.2,2651.9,2.18642331]
[1739184524962,3.77061,2652.1,2651.8,0.38312]
[1739184525116,3.77095,2651.9,2651.6,6.91218316]
[1739184525315,3.77086,2652.0,2651.6,6.91218316]
[1739184525617,3.7709,2651.9,2651.6,6.91218316]
[1739184527666,4.53861,2652.5,2651.7,3.77106]
[1739184527967,0.75610584,2652.7,2652.4,2.18642331]
[1739184528136,3.76967,2652.8,2652.4,2.18642331]
[1739184528463,7.53937,2652.8,2652.4,2.18642331]
[1739184528663,3.76984,2652.7,2652.4,2.18642331]
[1739184528819,3.76996,2652.6,2652.4,2.18642331]
[1739184529942,3.76967,2652.8,2652.4,2.18642331]
[1739184530244,3.76977,2652.7,2652.4,2.18642331]
[1739184530818,0.77286624,2653.0,2652.4,2.18642331]
[1739184531015,3.77286624,2653.0,2652.4,2.18642331]
[1739184531239,3.77025,2652.4,2652.1,11.42954331]
[1739184531426,3.77033,2652.3,2652.1,2.56954331]
[1739184532145,3.77002,2652.5,2652.1,2.56954331]
[1739184532353,3.77033,2652.3,2652.1,2.56954331]
[1739184532548,3.77002,2652.5,2652.1,2.56954331]
[1739184532921,3.77017,2652.4,2652.1,2.56954331]
[1739184533146,3.77017,2652.4,2652.2,0.08344665]
[1739184534665,3.77002,2652.5,2652.2,0.08344665]
[1739184534854,7.54012,2652.5,2652.2,0.08344665]
[1739184535360,3.77002,2652.5,2652.2,0.08344665]
[1739184535972,3.77019,2652.4,2652.2,0.08344665]
[1739184537072,0.7685,2652.8,2652.2,0.08344665]
[1739184537073,3.76989,2652.6,2652.2,0.08344665]
[1739184537441,3.76985,2652.7,2652.2,0.08344665]
[1739184537643,3.76955,2652.9,2652.4,2.18642331]
[1739184538038,4.54136624,2653.0,2652.4,2.18642331]
[1739184538039,3.76986,2652.7,2652.5,0.08358777]
[1739184538549,7.53972,2652.7,2652.4,2.18642331]
[1739184539058,7.53972,2652.7,2652.1,6.34004331]
[1739184539238,7.53972,2652.7,2652.5,0.08358777]
[1739184539437,7.53972,2652.7,2652.1,6.34004331]
[1739184539637,3.76986,2652.7,2652.6,0.08357419]
[1739184539844,3.76986,2652.7,2652.1,6.34004331]
[1739184540049,3.76986,2652.7,2652.6,0.08357419]
[1739184540236,3.76986,2652.7,2652.2,3.77035]
[1739184540455,3.77088,2651.9,2651.8,8.86]
[1739184540661,3.77116,2651.7,2651.6,4.72575985]
[1739184540955,3.77127,2651.7,2651.3,8.86]
[1739184541164,3.77146,2651.5,2651.3,8.86]
[1739184541344,3.77146,2651.5,2651.2,2.18642331]
[1739184541553,3.77173,2651.3,2651.2,2.18642331]
[1739184542467,3.77148,2651.5,2651.2,2.18642331]
[1739184543171,7.54277,2651.6,2651.2,2.18642331]
[1739184543355,3.7713,2651.6,2651.2,2.18642331]
[1739184543560,3.77166,2651.4,2651.2,2.18642331]
[1739184544541,7.54336,2651.4,2651.2,2.18642331]
[1739184544774,3.77173,2651.3,2651.2,2.18642331]
[1739184545338,3.77173,2651.3,2650.9,11.04642331]
[1739184545611,7.54389,2651.2,2650.9,2.18642331]
[1739184545869,3.77191,2651.2,2650.9,2.18642331]
[1739184546074,3.77139,2651.6,2650.9,2.18642331]
[1739184546376,3.77139,2651.6,2651.2,2.18642331]
[1739184546835,3.77148,2651.5,2651.2,2.18642331]
[1739184547655,7.5428,2651.6,2651.2,2.18642331]
[1739184547948,3.77145,2651.5,2651.3,0.07618017]
[1739184548371,3.77145,2651.5,2651.2,2.18642331]
[1739184548574,3.77145,2651.5,2651.4,0.07616658]
[1739184548760,3.77159,2651.4,2651.3,0.07618017]
[1739184548963,3.77159,2651.4,2651.2,2.18642331]
[1739184548964,3.77173,2651.3,2651.2,2.18642331]
[1739184549372,3.77173,2651.3,2651.2,2.26263007]
[1739184549884,3.77139,2651.6,2651.2,2.26263007]
[1739184549885,3.77156,2651.5,2651.2,2.26263007]
[1739184550695,3.7717,2651.4,2651.2,2.26263007]
[1739184550990,3.77156,2651.5,2651.2,2.26263007]
[1739184551155,7.54311,2651.5,2651.2,2.26263007]
[1739184551357,3.7716,2651.4,2651.2,2.26263007]
[1739184551561,3.77173,2651.3,2651.2,0.07620676]
[1739184551856,3.77173,2651.3,2650.9,2.18642331]
[1739184552062,3.77173,2651.3,2651.2,0.07623926]
[1739184552263,3.77173,2651.3,2650.9,2.18642331]
[1739184552460,3.77173,2651.3,2651.2,0.07623926]
[1739184552652,3.77173,2651.3,2650.9,2.18642331]
[1739184552848,3.77173,2651.3,2651.2,0.07623926]
[1739184553053,3.77173,2651.3,2650.9,2.18642331]
[1739184553272,3.77173,2651.3,2651.2,0.07623926]
[1739184553581,3.77193,2651.2,2650.9,2.18642331]
[1739184553784,3.77198,2651.2,2650.9,2.18642331]
[1739184553984,3.77163,2651.4,2650.9,5.95871331]
[1739184554166,3.77163,2651.4,2650.9,2.18642331]
[1739184554367,3.77163,2651.4,2650.9,5.95862331]
[1739184554661,3.77163,2651.4,2650.8,0.03771534]
[1739184554662,3.77161,2651.4,2651.2,2.18642331]
[1739184554867,3.77182,2651.3,2650.9,2.18642331]
[1739184555570,3.77175,2651.3,2650.9,2.18642331]
[1739184555750,3.77161,2651.4,2650.9,2.18642331]
[1739184555950,3.77139,2651.6,2651.2,2.18642331]
[1739184556188,4.59894,2652.0,2651.5,2.18642331]
[1739184556354,3.77053,2652.2,2651.8,2.18642331]
[1739184556863,3.77073,2652.1,2651.8,2.18642331]
[1739184557067,3.7713,2651.7,2651.5,2.18642331]
[1739184557262,3.7713,2651.6,2651.5,2.18642331]
[1739184557461,3.7713,2651.7,2651.5,2.18642331]
[1739184558385,7.5425,2651.7,2651.5,2.18642331]
[1739184558592,4.59899,2651.9,2651.5,2.18642331]
[1739184558792,3.77124,2651.7,2651.5,2.18642331]
[1739184558989,3.7713,2651.6,2651.5,2.18642331]
[1739184559292,3.77124,2651.7,2651.5,2.18642331]
[1739184559497,3.77096,2651.9,2651.5,2.18642331]
[1739184561894,4.53482391,2652.1,2651.6,3.77129]
[1739184562387,3.0,2652.2,2651.5,2.18642331]
[1739184562593,3.77046,2652.2,2651.7,3.77113]
[1739184562966,3.77046,2652.2,2651.8,0.07551107]
[1739184562967,4.59901,2651.9,2651.8,0.07551107]
[1739184563359,3.7713,2651.6,2651.2,2.18642331]
[1739184564114,3.77124,2651.7,2651.2,2.18642331]
[1739184564296,3.77173,2651.3,2651.2,2.18642331]
[1739184564506,3.77188,2651.2,2650.9,2.18642331]
[1739184565001,3.77203,2651.1,2650.9,2.18642331]
[1739184565305,3.77216,2651.0,2650.6,2.56954331]
[1739184565627,3.77235,2650.9,2650.6,2.18642331]
[1739184566107,3.77216,2651.0,2650.6,2.18642331]
[1739184566108,7.54445,2651.0,2650.6,2.18642331]
[1739184566307,3.77233,2650.9,2650.6,2.18642331]
[1739184567214,3.77189,2651.2,2650.6,2.18642331]
[1739184567415,3.77189,2651.2,2650.6,5.95907331]
[1739184567714,3.77175,2651.3,2650.9,2.18642331]